[Event "NED-ch U20 Girls 2018"]
[Site "Assen"]
[Date "2018.05.02"]
[Round "1"]
[White "Duson, Robin"]
[Black "Warnaar, Alisha"]
[Result "1/2-1/2"]
[ECO "B76"]
[WhiteElo "1920"]
[BlackElo "1647"]
[Annotator "NA RC"]
[PlyCount "71"]
[EventDate "2018.??.??"]
[EventType "swiss"]
[EventCountry "NED"]
[SourceTitle "playchess.com"]
[Source "ChessBase"]
[SourceQuality "1"]
[TimeControl "5400+30"]

1. e4 {[%emt 0:00:00]} c5 {[%emt 0:00:33]} 2. Nf3 {[%emt 0:00:00]} d6 {[%emt 0:00:41]} 3. d4 {[%emt 0:00:08]} cxd4 {[%emt 0:00:12]} 4. Nxd4 {[%emt 0:00:06]} Nf6 {[%emt 0:00:05]} 5. Nc3 {[%emt 0:00:10]} g6 {[%emt 0:00:11]} 6. Be3 {[%emt 0:00:30]} Bg7 {[%emt 0:00:14]} 7. f3 {[%emt 0:00:19]} O-O {[%emt 0:00:11]} 8. Qd2 {[%emt 0:00:15]} Nc6 {[%emt 0:00:05]} 9. g4 {[%emt 0:00:51]} Be6 {[%emt 0:00:16]} 10. Nxe6 {[%emt 0:00:29]} fxe6 {[%emt 0:00:06]} 11. O-O-O {[%emt 0:00:52]} Ne5 {[%emt 0:00:11]} 12. Be2 {[%emt 0:00:26]} Qc8 {[%emt 0:00:12]} 13. h4 {[%emt 0:00:56]} Nfd7 {[%emt 0:00:14]} 14. h5 {[%emt 0:01:33]} Nxf3 {[%emt 0:00:12]} 15. Nd5 {[%emt 0:02:45]} Nxd2 {[%emt 0:00:38]} 16. Nxe7+ {[%emt 0:00:13]} Kf7 {[%emt 0:00:09]} 17. Nxc8 {[%emt 0:00:27]} Raxc8 {[%emt 0:00:26]} 18. hxg6+ {[%emt 0:01:05]} hxg6 {[%emt 0:00:14]} 19. Rxd2 {[%emt 0:00:21]} Ke7 {[%emt 0:00:35]} 20. Rh7 {[%emt 0:01:55]} Rf7 {[%emt 0:00:25]} 21. Bg5+ {[%emt 0:01:02]} Bf6 {[%emt 0:00:10]} 22. Bxf6+ {[%emt 0:01:05]} Nxf6 {[%emt 0:00:09]} 23. Rxf7+ {[%emt 0:01:37]} Kxf7 {[%emt 0:00:07]} 24. Rxd6 {[%emt 0:01:06]} Rh8 {[%emt 0:08:23]} 25. Bf3 {[%emt 0:08:56]} Rh3 {[%emt 0:02:36]} 26. Rd3 {[%emt 0:02:17]} e5 {[%emt 0:02:20]} 27. Kd2 {[%emt 0:11:47]} Ke7 {[%emt 0:07:44]} 28. c4 {[%emt 0:02:45]} Rg3 {[%emt 0:11:28]} 29. c5 {[%emt 0:03:46]} Nxg4 {[%emt 0:05:10]} 30. Bxg4 {[%emt 0:01:38]} Rxg4 {[%emt 0:00:24]} 31. Rd6 {[%emt 0:03:29]} Rxe4 {[%emt 0:11:08]} 32. Rxg6 {[%emt 0:06:44]} Kd7 {[%emt 0:02:09]} 33. Rd6+ {[%emt 0:04:00]} Kc7 {[%emt 0:00:34]} 34. Re6 {[%emt 0:00:12]} Rc4 {[%emt 0:04:14]} 35. Rxe5 {[%emt 0:00:45]} Kc6 {[%emt 0:00:07]} 36. Re3 {[%emt 0:01:31]} 1/2-1/2

[Event "NED-ch U20 Girls 2018"]
[Site "Assen"]
[Date "2018.05.02"]
[Round "1"]
[White "Verhoeff, Timardi"]
[Black "Adema, Marrit"]
[Result "1-0"]
[ECO "A25"]
[WhiteElo "1911"]
[BlackElo "1497"]
[Annotator "NA RC"]
[PlyCount "101"]
[EventDate "2018.??.??"]
[EventType "swiss"]
[EventCountry "NED"]
[SourceTitle "playchess.com"]
[Source "ChessBase"]
[SourceQuality "1"]
[TimeControl "5400+30"]

1. c4 {[%emt 0:00:00]} Nf6 {[%emt 0:00:19]} 2. g3 {[%emt 0:00:00]} e5 {[%emt 0:01:38]} 3. Bg2 {[%emt 0:00:00]} Nc6 {[%emt 0:00:40]} 4. Nc3 {[%emt 0:03:10]} Bc5 {[%emt 0:02:11]} 5. e3 {[%emt 0:02:15]} O-O {[%emt 0:02:35]} 6. Nge2 {[%emt 0:00:50]} a6 {[%emt 0:02:42]} 7. d4 {[%emt 0:05:49]} exd4 {[%emt 0:02:33]} 8. exd4 {[%emt 0:00:15]} Ba7 {[%emt 0:01:19]} 9. Qd3 {[%emt 0:24:58]} d6 {[%emt 0:05:04]} 10. a3 {[%emt 0:10:25]} Re8 {[%emt 0:03:52]} 11. Be3 {[%emt 0:05:16]} Ng4 {[%emt 0:05:23]} 12. h3 {[%emt 0:07:01]} Nxe3 {[%emt 0:03:10]} 13. fxe3 {[%emt 0:00:04]} Qg5 {[%emt 0:16:38]} 14. Nd5 {[%emt 0:10:14]} Rb8 {[%emt 0:09:39]} 15. h4 {[%emt 0:04:22]} Qd8 {[%emt 0:01:32]} 16. h5 {[%emt 0:04:24]} Be6 {[%emt 0:02:14]} 17. Ndf4 {[%emt 0:02:11]} Na5 {[%emt 0:05:40]} 18. Nxe6 {[%emt 0:00:41]} Rxe6 {[%emt 0:01:16]} 19. b4 {[%emt 0:03:47]} Nc6 {[%emt 0:00:14]} 20. Be4 {[%emt 0:01:02]} h6 {[%emt 0:02:10]} 21. Nf4 {[%emt 0:02:11]} Re8 {[%emt 0:02:44]} 22. O-O-O {[%emt 0:02:49]} Qe7 {[%emt 0:02:45]} 23. Bh7+ {[%emt 0:00:50]} Kh8 {[%emt 0:00:40]} 24. Nd5 {[%emt 0:00:00]} Qg5 {[%emt 0:01:14]} 25. Qf5 {[%emt 0:01:50]} Qxf5 {[%emt 0:04:31]} 26. Bxf5 {[%emt 0:00:01]} Ne7 {[%emt 0:00:44]} 27. Bd7 {[%emt 0:02:12]} Nxd5 {[%emt 0:01:23]} 28. Bxe8 {[%emt 0:00:04]} Nxe3 {[%emt 0:00:33]} 29. Rd3 {[%emt 0:00:06]} Rxe8 {[%emt 0:01:26]} 30. Re1 {[%emt 0:00:04]} Bxd4 {[%emt 0:02:51]} 31. Rxd4 {[%emt 0:00:09]} Re6 {[%emt 0:00:25]} 32. Kd2 {[%emt 0:01:17]} Nf5 {[%emt 0:00:42]} 33. Rxe6 {[%emt 0:00:02]} fxe6 {[%emt 0:00:02]} 34. Rd3 {[%emt 0:00:31]} Kg8 {[%emt 0:00:52]} 35. g4 {[%emt 0:00:17]} Ne7 {[%emt 0:01:20]} 36. Re3 {[%emt 0:01:39]} e5 {[%emt 0:00:28]} 37. c5 {[%emt 0:00:38]} Kf7 {[%emt 0:01:45]} 38. Rf3+ {[%emt 0:00:47]} Ke6 {[%emt 0:00:28]} 39. cxd6 {[%emt 0:00:15]} cxd6 {[%emt 0:00:51]} 40. Rf8 {[%emt 0:00:54]} Nc6 {[%emt 0:01:30]} 41. Rc8 {[%emt 0:04:00]} Kd5 {[%emt 0:05:06]} 42. Rg8 {[%emt 0:00:58]} Kd4 {[%emt 0:01:00]} 43. Rxg7 {[%emt 0:00:34]} e4 {[%emt 0:00:48]} 44. g5 {[%emt 0:02:07]} e3+ {[%emt 0:00:58]} 45. Ke2 {[%emt 0:00:00]} Ke4 {[%emt 0:00:00]} 46. gxh6 {[%emt 0:00:00]} Nd4+ {[%emt 0:00:00]} 47. Kd1 {[%emt 0:00:00]} Kf3 {[%emt 0:00:00]} 48. Rf7+ {[%emt 0:00:00]} Kg2 {[%emt 0:00:00]} 49. h7 {[%emt 0:00:00]} Nf3 {[%emt 0:00:00]} 50. Rxf3 {[%emt 0:00:00]} Kxf3 {[%emt 0:00:00]} 51. Ke1 {[%emt 0:00:00]} 1-0

[Event "NED-ch U20 Girls 2018"]
[Site "Assen"]
[Date "2018.05.02"]
[Round "1"]
[White "Naber, Quirine"]
[Black "Monteny, Pascalle"]
[Result "1/2-1/2"]
[ECO "C87"]
[WhiteElo "1775"]
[BlackElo "1446"]
[Annotator "NA RC"]
[PlyCount "83"]
[EventDate "2018.??.??"]
[EventType "swiss"]
[EventCountry "NED"]
[SourceTitle "playchess.com"]
[Source "ChessBase"]
[SourceQuality "1"]
[TimeControl "5400+30"]

1. e4 {[%emt 0:00:00]} e5 {[%emt 0:00:07]} 2. Nf3 {[%emt 0:00:00]} Nc6 {[%emt 0:00:08]} 3. Bb5 {[%emt 0:00:00]} a6 {[%emt 0:00:07]} 4. Ba4 {[%emt 0:00:00]} Nf6 {[%emt 0:00:17]} 5. d3 {[%emt 0:00:00]} d6 {[%emt 0:01:27]} 6. c3 {[%emt 0:00:00]} b5 {[%emt 0:08:46]} 7. Bc2 {[%emt 0:00:13]} Be7 {[%emt 0:02:03]} 8. O-O {[%emt 0:00:52]} O-O {[%emt 0:01:52]} 9. Nbd2 {[%emt 0:00:54]} Bg4 {[%emt 0:03:16]} 10. Re1 {[%emt 0:01:02]} Qd7 {[%emt 0:02:26]} 11. Nf1 {[%emt 0:04:05]} Bh5 {[%emt 0:13:57]} 12. Ng3 {[%emt 0:05:53]} Bg6 {[%emt 1:02:04]} 13. Nh4 {[%emt 0:09:29]} Rfe8 {[%emt 0:00:00]} 14. Nhf5 {[%emt 0:02:38]} h6 {[%emt 0:00:00]} 15. Qf3 {[%emt 0:10:38]} Rad8 {[%emt 0:00:00]} 16. a4 {[%emt 0:11:12]} Ra8 {[%emt 0:00:00]} 17. h4 {[%emt 0:04:35]} Reb8 {[%emt 0:00:00]} 18. b4 {[%emt 0:05:52]} Nd8 {[%emt 0:00:00]} 19. d4 {[%emt 0:08:38]} Nc6 {[%emt 0:00:00]} 20. d5 {[%emt 0:02:40]} Na7 {[%emt 0:00:00]} 21. Be3 {[%emt 0:03:07]} Nc8 {[%emt 0:00:00]} 22. h5 {[%emt 0:04:22]} Bh7 {[%emt 0:00:00]} 23. a5 {[%emt 0:02:31]} Na7 {[%emt 0:00:00]} 24. Bb3 {[%emt 0:07:59]} Nc8 {[%emt 0:00:00]} 25. Bd2 {[%emt 0:00:16]} Na7 {[%emt 0:00:00]} 26. Be3 {[%emt 0:00:55]} Nc8 {[%emt 0:00:00]} 27. c4 {[%emt 0:02:50]} bxc4 {[%emt 0:00:50]} 28. Ba4 {[%emt 0:00:04]} Qd8 {[%emt 0:02:13]} 29. Bc6 {[%emt 0:00:02]} Ra7 {[%emt 0:01:42]} 30. Bxa7 {[%emt 0:00:04]} Nxa7 {[%emt 0:00:04]} 31. Qc3 {[%emt 0:01:18]} Nxc6 {[%emt 0:01:26]} 32. dxc6 {[%emt 0:00:02]} Rb5 {[%emt 0:01:37]} 33. Qxc4 {[%emt 0:00:42]} Bxf5 {[%emt 0:00:56]} 34. Nxf5 {[%emt 0:00:20]} Nxh5 {[%emt 0:00:20]} 35. Nxe7+ {[%emt 0:10:00]} Qxe7 {[%emt 0:00:05]} 36. Re3 {[%emt 0:00:46]} Qg5 {[%emt 0:00:49]} 37. Kf1 {[%emt 0:03:16]} Qh4 {[%emt 0:01:29]} 38. Rh3 {[%emt 0:00:36]} Qg4 {[%emt 0:00:15]} 39. Rh2 {[%emt 0:00:55]} Nf4 {[%emt 0:00:43]} 40. Rb1 {[%emt 0:00:34]} Kf8 {[%emt 0:00:54]} 41. Qc2 {[%emt 0:00:00]} Qg6 {[%emt 0:00:00]} 42. g3 {[%emt 0:00:00]} 1/2-1/2

[Event "NED-ch U20 Girls 2018"]
[Site "Assen"]
[Date "2018.05.02"]
[Round "1"]
[White "Tiggelman, Laura"]
[Black "Den Dunnen, Lola"]
[Result "0-1"]
[ECO "C55"]
[WhiteElo "1536"]
[BlackElo "1912"]
[Annotator "NA RC"]
[PlyCount "102"]
[EventDate "2018.??.??"]
[EventType "swiss"]
[EventCountry "NED"]
[SourceTitle "playchess.com"]
[Source "ChessBase"]
[SourceQuality "1"]
[TimeControl "5400+30"]

1. e4 {[%emt 0:00:00]} e5 {[%emt 0:00:07]} 2. Nf3 {[%emt 0:00:00]} Nc6 {[%emt 0:00:05]} 3. Bc4 {[%emt 0:00:00]} Nf6 {[%emt 0:00:09]} 4. d3 {[%emt 0:00:00]} Be7 {[%emt 0:00:09]} 5. c3 {[%emt 0:00:01]} O-O {[%emt 0:00:23]} 6. Nbd2 {[%emt 0:00:36]} d5 {[%emt 0:01:59]} 7. Bb3 {[%emt 0:06:23]} Bg4 {[%emt 0:05:52]} 8. h3 {[%emt 0:01:49]} Bh5 {[%emt 0:02:23]} 9. Qe2 {[%emt 0:02:39]} dxe4 {[%emt 0:04:35]} 10. dxe4 {[%emt 0:00:13]} Bd6 {[%emt 0:07:13]} 11. Nf1 {[%emt 0:02:45]} Bg6 {[%emt 0:06:10]} 12. Ng3 {[%emt 0:06:31]} Nh5 {[%emt 0:02:33]} 13. Nxh5 {[%emt 0:05:56]} Bxh5 {[%emt 0:00:09]} 14. g4 {[%emt 0:00:16]} Bg6 {[%emt 0:00:25]} 15. Bd2 {[%emt 0:04:55]} Na5 {[%emt 0:03:18]} 16. Bc2 {[%emt 0:03:15]} c5 {[%emt 0:06:59]} 17. h4 {[%emt 0:15:44]} h5 {[%emt 0:02:25]} 18. Ng5 {[%emt 0:22:29]} hxg4 {[%emt 0:03:14]} 19. Qxg4 {[%emt 0:00:21]} Qc8 {[%emt 0:01:45]} 20. Qxc8 {[%emt 0:03:27]} Raxc8 {[%emt 0:00:57]} 21. h5 {[%emt 0:03:03]} Bh7 {[%emt 0:00:37]} 22. O-O-O {[%emt 0:02:21]} Be7 {[%emt 0:03:48]} 23. Rdg1 {[%emt 0:03:07]} Nc4 {[%emt 0:04:44]} 24. Nxh7 {[%emt 0:07:57]} Kxh7 {[%emt 0:00:10]} 25. Bg5 {[%emt 0:00:22]} f6 {[%emt 0:04:58]} 26. Bh4 {[%emt 0:01:56]} Rfd8 {[%emt 0:07:03]} 27. Bg3 {[%emt 0:01:35]} b5 {[%emt 0:06:01]} 28. b3 {[%emt 0:03:21]} Na3 {[%emt 0:03:06]} 29. f4 {[%emt 0:00:17]} Nxc2 {[%emt 0:01:38]} 30. Kxc2 {[%emt 0:00:05]} Bd6 {[%emt 0:00:54]} 31. f5 {[%emt 0:00:48]} c4 {[%emt 0:01:40]} 32. b4 {[%emt 0:00:07]} Ra8 {[%emt 0:01:39]} 33. Bf2 {[%emt 0:00:28]} Bc7 {[%emt 0:01:17]} 34. Be3 {[%emt 0:00:26]} Bb6 {[%emt 0:00:25]} 35. Rg3 {[%emt 0:02:34]} Bxe3 {[%emt 0:00:13]} 36. Rxe3 {[%emt 0:00:06]} a5 {[%emt 0:01:18]} 37. a3 {[%emt 0:00:18]} axb4 {[%emt 0:00:18]} 38. axb4 {[%emt 0:00:05]} Ra2+ {[%emt 0:00:25]} 39. Kb1 {[%emt 0:00:03]} Rda8 {[%emt 0:00:53]} 40. Rc1 {[%emt 0:01:47]} Rh2 {[%emt 0:04:08]} 41. Ree1 {[%emt 0:00:00]} Raa2 {[%emt 0:00:00]} 42. Rcd1 {[%emt 0:00:00]} Rhb2+ {[%emt 0:00:00]} 43. Kc1 {[%emt 0:00:00]} Rc2+ {[%emt 0:00:00]} 44. Kb1 {[%emt 0:00:00]} Rab2+ {[%emt 0:00:00]} 45. Ka1 {[%emt 0:00:00]} Rb3 {[%emt 0:00:00]} 46. Re3 {[%emt 0:00:00]} Rcxc3 {[%emt 0:00:00]} 47. Rxc3 {[%emt 0:00:00]} Rxc3 {[%emt 0:00:00]} 48. Rd5 {[%emt 0:00:00]} Ra3+ {[%emt 0:00:00]} 49. Kb2 {[%emt 0:00:00]} Rb3+ {[%emt 0:00:00]} 50. Kc2 {[%emt 0:00:00]} Rxb4 {[%emt 0:00:00]} 51. Kc3 {[%emt 0:00:00]} Rb3+ {[%emt 0:00:00]} 0-1

[Event "NED-ch U20 Girls 2018"]
[Site "Assen"]
[Date "2018.05.02"]
[Round "1"]
[White "Woest, Imre"]
[Black "Waardenburg, Feline"]
[Result "1/2-1/2"]
[ECO "B12"]
[WhiteElo "1418"]
[BlackElo "1737"]
[Annotator "NA RC"]
[PlyCount "103"]
[EventDate "2018.??.??"]
[EventType "swiss"]
[EventCountry "NED"]
[SourceTitle "playchess.com"]
[Source "ChessBase"]
[SourceQuality "1"]
[TimeControl "5400+30"]

1. e4 {[%emt 0:00:00]} c6 {[%emt 0:00:04]} 2. d4 {[%emt 0:00:00]} d5 {[%emt 0:00:04]} 3. e5 {[%emt 0:00:00]} Bf5 {[%emt 0:00:10]} 4. Nf3 {[%emt 0:00:00]} e6 {[%emt 0:00:18]} 5. Be2 {[%emt 0:00:00]} Nd7 {[%emt 0:00:53]} 6. O-O {[%emt 0:00:02]} Ne7 {[%emt 0:08:57]} 7. Nc3 {[%emt 0:02:38]} a6 {[%emt 0:01:00]} 8. Be3 {[%emt 0:07:20]} c5 {[%emt 0:08:54]} 9. dxc5 {[%emt 0:08:31]} Nc6 {[%emt 0:01:36]} 10. Na4 {[%emt 0:04:59]} Ndxe5 {[%emt 0:06:43]} 11. Nxe5 {[%emt 0:00:43]} Nxe5 {[%emt 0:00:20]} 12. Nb6 {[%emt 0:00:42]} Rb8 {[%emt 0:01:23]} 13. Bf4 {[%emt 0:02:57]} Qc7 {[%emt 0:07:47]} 14. b4 {[%emt 0:00:44]} Nf3+ {[%emt 0:03:46]} 15. Bxf3 {[%emt 0:00:38]} Qxf4 {[%emt 0:00:04]} 16. c3 {[%emt 0:00:40]} Qc7 {[%emt 0:02:14]} 17. Re1 {[%emt 0:06:14]} Be7 {[%emt 0:02:47]} 18. Bxd5 {[%emt 0:00:48]} O-O {[%emt 0:00:46]} 19. Qf3 {[%emt 0:01:44]} Rfd8 {[%emt 0:11:47]} 20. Be4 {[%emt 0:02:30]} Bxe4 {[%emt 0:04:59]} 21. Qxe4 {[%emt 0:00:50]} Bf6 {[%emt 0:00:07]} 22. Rac1 {[%emt 0:04:46]} Rd2 {[%emt 0:03:56]} 23. Qb1 {[%emt 0:09:22]} Qf4 {[%emt 0:02:50]} 24. Rf1 {[%emt 0:00:50]} Rbd8 {[%emt 0:04:28]} 25. Qb3 {[%emt 0:02:15]} Rxf2 {[%emt 0:04:13]} 26. Nc4 {[%emt 0:01:50]} Rd3 {[%emt 0:06:48]} 27. Rcd1 {[%emt 0:06:43]} Rxf1+ {[%emt 0:01:27]} 28. Rxf1 {[%emt 0:00:08]} Qg5 {[%emt 0:01:24]} 29. Qa4 {[%emt 0:00:22]} g6 {[%emt 0:00:57]} 30. Qe8+ {[%emt 0:00:40]} Kg7 {[%emt 0:00:12]} 31. Nd6 {[%emt 0:01:03]} Qe3+ {[%emt 0:09:14]} 32. Kh1 {[%emt 0:00:16]} Rxd6 {[%emt 0:04:39]} 33. cxd6 {[%emt 0:00:39]} Qd3 {[%emt 0:00:05]} 34. Rc1 {[%emt 0:01:40]} Qd2 {[%emt 0:00:18]} 35. Rf1 {[%emt 0:03:36]} Qxd6 {[%emt 0:01:05]} 36. Qc8 {[%emt 0:00:14]} Qd3 {[%emt 0:00:12]} 37. Rg1 {[%emt 0:00:31]} Bxc3 {[%emt 0:00:44]} 38. Qxb7 {[%emt 0:01:01]} Bd4 {[%emt 0:00:37]} 39. Re1 {[%emt 0:00:14]} Qd2 {[%emt 0:00:32]} 40. Rb1 {[%emt 0:00:21]} Qxa2 {[%emt 0:00:12]} 41. Rf1 {[%emt 0:02:49]} Bf6 {[%emt 0:00:39]} 42. Qf3 {[%emt 0:00:57]} Qb2 {[%emt 0:00:34]} 43. Qf4 {[%emt 0:04:05]} Qc3 {[%emt 0:00:56]} 44. g4 {[%emt 0:01:26]} g5 {[%emt 0:00:58]} 45. Qf2 {[%emt 0:00:37]} Qe5 {[%emt 0:00:00]} 46. Kg2 {[%emt 0:00:00]} Qe4+ {[%emt 0:00:00]} 47. Qf3 {[%emt 0:00:00]} Qd4 {[%emt 0:00:00]} 48. h3 {[%emt 0:00:00]} Qd8 {[%emt 0:00:00]} 49. Qe2 {[%emt 0:00:00]} Qb6 {[%emt 0:00:00]} 50. Qf2 {[%emt 0:00:00]} Qd8 {[%emt 0:00:00]} 51. Qe2 {[%emt 0:00:00]} Qd4 {[%emt 0:00:00]} 52. Qf3 {[%emt 0:00:00]} 1/2-1/2

[Event "NED-ch U20 Girls 2018"]
[Site "Assen"]
[Date "2018.05.02"]
[Round "2"]
[White "Den Dunnen, Lola"]
[Black "Waardenburg, Marlinde"]
[Result "1-0"]
[ECO "E46"]
[WhiteElo "1912"]
[BlackElo "1686"]
[Annotator "NA RC"]
[PlyCount "49"]
[EventDate "2018.??.??"]
[EventType "swiss"]
[EventCountry "NED"]
[SourceTitle "playchess.com"]
[Source "ChessBase"]
[SourceQuality "1"]
[TimeControl "5400+30"]

1. d4 {[%emt 0:00:00]} Nf6 {[%emt 0:00:02]} 2. c4 {[%emt 0:00:00]} e6 {[%emt 0:00:08]} 3. Nc3 {[%emt 0:00:00]} Bb4 {[%emt 0:00:11]} 4. e3 {[%emt 0:00:00]} O-O {[%emt 0:00:22]} 5. Nge2 {[%emt 0:00:07]} Re8 {[%emt 0:00:30]} 6. a3 {[%emt 0:00:28]} Bf8 {[%emt 0:00:33]} 7. Ng3 {[%emt 0:00:44]} d5 {[%emt 0:00:55]} 8. Be2 {[%emt 0:04:56]} dxc4 {[%emt 0:06:56]} 9. Bxc4 {[%emt 0:03:04]} c5 {[%emt 0:02:11]} 10. O-O {[%emt 0:06:20]} Bd7 {[%emt 0:05:33]} 11. dxc5 {[%emt 0:12:01]} Bxc5 {[%emt 0:01:31]} 12. b4 {[%emt 0:00:55]} Bf8 {[%emt 0:04:10]} 13. Bb2 {[%emt 0:01:20]} a6 {[%emt 0:05:21]} 14. Qe2 {[%emt 0:09:11]} b5 {[%emt 0:09:05]} 15. Bb3 {[%emt 0:00:49]} Bc6 {[%emt 0:00:55]} 16. e4 {[%emt 0:02:03]} e5 {[%emt 0:05:39]} 17. Rfd1 {[%emt 0:02:47]} Qc8 {[%emt 0:02:21]} 18. Nd5 {[%emt 0:05:13]} Bxd5 {[%emt 0:05:23]} 19. exd5 {[%emt 0:01:01]} Bd6 {[%emt 0:02:50]} 20. Rac1 {[%emt 0:04:10]} Qd7 {[%emt 0:01:46]} 21. Bc2 {[%emt 0:09:44]} a5 {[%emt 0:10:49]} 22. Bd3 {[%emt 0:02:52]} Nxd5 {[%emt 0:05:07]} 23. Bxb5 {[%emt 0:01:08]} Nf4 {[%emt 0:10:21]} 24. Bxd7 {[%emt 0:01:06]} Nxe2+ {[%emt 0:00:25]} 25. Nxe2 {[%emt 0:00:05]} 1-0

[Event "NED-ch U20 Girls 2018"]
[Site "Assen"]
[Date "2018.05.02"]
[Round "2"]
[White "Martinez, Anna"]
[Black "Verhoeff, Timardi"]
[Result "1-0"]
[ECO "B13"]
[WhiteElo "1795"]
[BlackElo "1911"]
[Annotator "NA RC"]
[PlyCount "79"]
[EventDate "2018.??.??"]
[EventType "swiss"]
[EventCountry "NED"]
[SourceTitle "playchess.com"]
[Source "ChessBase"]
[SourceQuality "1"]
[TimeControl "5400+30"]

1. e4 {[%emt 0:00:00]} c6 {[%emt 0:00:07]} 2. d4 {[%emt 0:00:00]} d5 {[%emt 0:00:04]} 3. exd5 {[%emt 0:00:00]} cxd5 {[%emt 0:00:06]} 4. Bf4 {[%emt 0:00:00]} Nf6 {[%emt 0:00:33]} 5. c3 {[%emt 0:00:09]} Nc6 {[%emt 0:05:37]} 6. Bd3 {[%emt 0:00:23]} e6 {[%emt 0:02:55]} 7. Nf3 {[%emt 0:00:58]} h6 {[%emt 0:04:13]} 8. Nbd2 {[%emt 0:00:49]} Bd6 {[%emt 0:02:30]} 9. Bg3 {[%emt 0:00:38]} Nh5 {[%emt 0:20:32]} 10. O-O {[%emt 0:05:56]} O-O {[%emt 0:07:56]} 11. Re1 {[%emt 0:06:20]} Nxg3 {[%emt 0:08:13]} 12. hxg3 {[%emt 0:00:08]} Qc7 {[%emt 0:04:08]} 13. Qe2 {[%emt 0:02:42]} a6 {[%emt 0:08:44]} 14. Ne5 {[%emt 0:03:10]} Bxe5 {[%emt 0:03:21]} 15. dxe5 {[%emt 0:00:17]} b5 {[%emt 0:00:30]} 16. a3 {[%emt 0:01:09]} Bb7 {[%emt 0:05:29]} 17. Nf3 {[%emt 0:02:21]} Rfd8 {[%emt 0:03:43]} 18. Rad1 {[%emt 0:00:56]} Ne7 {[%emt 0:04:35]} 19. Nd4 {[%emt 0:02:06]} Nc6 {[%emt 0:01:48]} 20. Qe3 {[%emt 0:09:53]} Nxd4 {[%emt 0:01:01]} 21. cxd4 {[%emt 0:00:23]} Rac8 {[%emt 0:00:55]} 22. Rc1 {[%emt 0:00:45]} Qb6 {[%emt 0:01:56]} 23. b4 {[%emt 0:01:40]} a5 {[%emt 0:04:11]} 24. Rc5 {[%emt 0:01:29]} Rxc5 {[%emt 0:00:18]} 25. bxc5 {[%emt 0:00:43]} Qc6 {[%emt 0:01:29]} 26. Rb1 {[%emt 0:02:25]} b4 {[%emt 0:02:28]} 27. axb4 {[%emt 0:00:21]} axb4 {[%emt 0:00:14]} 28. Rxb4 {[%emt 0:00:08]} Ra8 {[%emt 0:00:35]} 29. Qc1 {[%emt 0:02:23]} Qc7 {[%emt 0:01:26]} 30. Qb2 {[%emt 0:01:27]} Bc6 {[%emt 0:00:19]} 31. Rb6 {[%emt 0:01:31]} g6 {[%emt 0:00:56]} 32. Ba6 {[%emt 0:01:22]} Kg7 {[%emt 0:01:33]} 33. g4 {[%emt 0:01:06]} h5 {[%emt 0:01:08]} 34. gxh5 {[%emt 0:00:39]} Rh8 {[%emt 0:01:19]} 35. hxg6 {[%emt 0:00:26]} Kxg6 {[%emt 0:01:37]} 36. Qe2 {[%emt 0:02:48]} Rh5 {[%emt 0:00:40]} 37. Bd3+ {[%emt 0:00:26]} f5 {[%emt 0:00:27]} 38. exf6+ {[%emt 0:00:45]} Kh6 {[%emt 0:00:09]} 39. g3 {[%emt 0:00:21]} e5 {[%emt 0:01:27]} 40. f7 {[%emt 0:00:21]} 1-0

[Event "NED-ch U20 Girls 2018"]
[Site "Assen"]
[Date "2018.05.02"]
[Round "2"]
[White "Waardenburg, Feline"]
[Black "Naber, Quirine"]
[Result "0-1"]
[ECO "B38"]
[WhiteElo "1737"]
[BlackElo "1775"]
[Annotator "NA RC"]
[PlyCount "104"]
[EventDate "2018.??.??"]
[EventType "swiss"]
[EventCountry "NED"]
[SourceTitle "playchess.com"]
[Source "ChessBase"]
[SourceQuality "1"]
[TimeControl "5400+30"]

1. d4 {[%emt 0:00:00]} Nf6 {[%emt 0:00:04]} 2. c4 {[%emt 0:00:00]} g6 {[%emt 0:00:03]} 3. Nc3 {[%emt 0:00:00]} Bg7 {[%emt 0:00:06]} 4. e4 {[%emt 0:00:14]} d6 {[%emt 0:00:03]} 5. f3 {[%emt 0:00:22]} O-O {[%emt 0:00:35]} 6. Nge2 {[%emt 0:00:55]} c5 {[%emt 0:01:33]} 7. Be3 {[%emt 0:02:02]} cxd4 {[%emt 0:02:01]} 8. Nxd4 {[%emt 0:01:08]} Nc6 {[%emt 0:00:56]} 9. Be2 {[%emt 0:03:52]} Qc7 {[%emt 0:13:06]} 10. O-O {[%emt 0:02:09]} h5 {[%emt 0:07:11]} 11. Rc1 {[%emt 0:17:13]} Kh7 {[%emt 0:04:47]} 12. Nd5 {[%emt 0:14:27]} Qd7 {[%emt 0:04:30]} 13. Nb5 {[%emt 0:03:49]} b6 {[%emt 0:15:21]} 14. Bg5 {[%emt 0:08:27]} Ne8 {[%emt 0:06:15]} 15. b3 {[%emt 0:07:12]} Rb8 {[%emt 0:09:41]} 16. f4 {[%emt 0:03:19]} Ba6 {[%emt 0:06:00]} 17. f5 {[%emt 0:02:43]} Bxb5 {[%emt 0:01:58]} 18. cxb5 {[%emt 0:00:18]} Nd4 {[%emt 0:05:06]} 19. Bxh5 {[%emt 0:05:03]} Nxb5 {[%emt 0:13:52]} 20. Bxe7 {[%emt 0:04:37]} Rh8 {[%emt 0:04:20]} 21. Qg4 {[%emt 0:04:37]} gxh5 {[%emt 0:02:31]} 22. Qxh5+ {[%emt 0:00:27]} Kg8 {[%emt 0:00:26]} 23. Qg5 {[%emt 0:00:44]} f6 {[%emt 0:00:22]} 24. Bxf6 {[%emt 0:00:36]} Rh6 {[%emt 0:00:17]} 25. Ne7+ {[%emt 0:01:18]} Kh7 {[%emt 0:00:15]} 26. Bxg7 {[%emt 0:01:34]} Nxg7 {[%emt 0:00:05]} 27. f6 {[%emt 0:00:10]} Ne6 {[%emt 0:00:26]} 28. Qf5+ {[%emt 0:00:53]} Kh8 {[%emt 0:00:06]} 29. Ng6+ {[%emt 0:01:32]} Rxg6 {[%emt 0:01:11]} 30. Qxg6 {[%emt 0:00:10]} Nf8 {[%emt 0:00:04]} 31. Qh5+ {[%emt 0:00:57]} Nh7 {[%emt 0:00:05]} 32. e5 {[%emt 0:06:06]} d5 {[%emt 0:01:30]} 33. Rf3 {[%emt 0:03:56]} Nd4 {[%emt 0:01:10]} 34. Rh3 {[%emt 0:00:50]} Rf8 {[%emt 0:00:36]} 35. Rf1 {[%emt 0:01:06]} Ne6 {[%emt 0:00:29]} 36. Qh6 {[%emt 0:04:23]} Rf7 {[%emt 0:00:21]} 37. Rg3 {[%emt 0:00:20]} Qe8 {[%emt 0:00:56]} 38. Qd2 {[%emt 0:00:31]} d4 {[%emt 0:00:09]} 39. Rf5 {[%emt 0:00:34]} a6 {[%emt 0:00:46]} 40. Rh5 {[%emt 0:00:29]} Nef8 {[%emt 0:00:39]} 41. Rgh3 {[%emt 0:00:00]} Qc6 {[%emt 0:00:00]} 42. Qh6 {[%emt 0:00:00]} Qe4 {[%emt 0:00:00]} 43. Qc1 {[%emt 0:00:00]} Rc7 {[%emt 0:00:00]} 44. Qf1 {[%emt 0:00:00]} Ng6 {[%emt 0:00:00]} 45. Rf5 {[%emt 0:00:00]} Rf7 {[%emt 0:00:00]} 46. Rh6 {[%emt 0:01:33]} Qe3+ {[%emt 0:01:02]} 47. Kh1 {[%emt 0:00:16]} Qxh6 {[%emt 0:00:04]} 48. e6 {[%emt 0:00:16]} Rc7 {[%emt 0:00:31]} 49. Qxa6 {[%emt 0:02:37]} Rc1+ {[%emt 0:01:51]} 50. Rf1 {[%emt 0:00:03]} Nxf6 {[%emt 0:00:55]} 51. Qa8+ {[%emt 0:00:45]} Ng8 {[%emt 0:00:09]} 52. Qf3 {[%emt 0:00:17]} Ne5 {[%emt 0:00:50]} 0-1